Cogmind - Beta 16 @@@ ROGUE MODE // 2025.12.29 @ 16:02:54 Player: BlobtheGreat Result: Destroyed by A4-KL7(R) with Subdweller Beam Cannon Performance ------------- Evolutions (0) 0 Regions Visited (2) 400 Robots Destroyed (32) 160 Value Destroyed (567) 567 Prototype IDs (12) 240 Alien Tech Used (0) 0 Bonus (0) 0 TOTAL SCORE: 1367 Bonus ------- None Cogmind --------- Core Integrity 0/250 Matter 250/300 Energy 156/160 System Corruption 0% Temperature Cool (9) Movement Treading (240) Ox1 Location -10/Subcaves Parts ------- > --- POWER (1) -------- Light Nuclear Core > --- PROPULSION (2) --- Light Treads Light Treads > --- UTILITY (2) ------ High-capacity Storage Unit Seismic Detector > --- WEAPON (2) ------- Light Cannon Light Cannon > --- INVENTORY (20) --- Ion Engine Light Treads Light Treads Light Treads Light Treads Aluminum Leg Wheel Wheel Large Storage Unit Seismic Detector ECM Suite Light Armor Plating Light Armor Plating Power Bank Small Laser Subdweller Beam Cannon Mining Laser Mining Claw Peak State ------------ > --- POWER ------------ Light Nuclear Core > --- PROPULSION ------- Light Treads Light Treads > --- UTILITY ---------- High-capacity Storage Unit Light Armor Plating > --- WEAPON ----------- Subdweller Beam Cannon Light Cannon > --- INVENTORY -------- Ion Engine Light Treads Light Treads Light Treads Light Treads Aluminum Leg Wheel Wheel Large Storage Unit Seismic Detector Seismic Detector ECM Suite Light Armor Plating Power Bank Small Laser Light Cannon Mining Laser Mining Claw [Rating: 12] Favorites ----------- Power Light Nuclear Core Engine Ion Engine Power Core Light Nuclear Core Propulsion Light Treads Treads Light Treads Utility High-capacity Storage Unit Device Seismic Detector Storage High-capacity Storage Unit Protection Light Armor Plating Weapon Light Cannon Energy Gun Medium Laser Energy Cannon Subdweller Beam Cannon Ballistic Gun Light Assault Rifle Ballistic Cannon Light Cannon Special Weapon Mining Laser Slashing Weapon Mining Claw Build | -11 -10 -10 ------- Run | Yrd Mat Sub Slots Evolved . | . . . Power . | . . . Propulsion . | . . . Utility . | . . . Weapon . | . . . Parts Attached 21 | 7 6 8 Power 2 | 1 1 . Engine 1 | 1 . . Core 1 | . 1 . Reactor . | . . . Propulsion 3 | 2 . 1 Treads 3 | 2 . 1 Leg . | . . . Wheel . | . . . Hover . | . . . Flight . | . . . Utility 7 | 2 2 3 Device 2 | 1 . 1 Storage 2 | 1 1 . Processor . | . . . Hackware . | . . . Protection 3 | . 1 2 Artifact . | . . . Weapon 9 | 2 3 4 Energy Gun 2 | 1 1 . Energy Cannon 1 | . . 1 Ballistic Gun 1 | 1 . . Ballistic Cannon 3 | . 2 1 Launcher . | . . . Special Weapon 1 | . . 1 Impact Weapon . | . . . Slashing Weapon 1 | . . 1 Piercing Weapon . | . . . Special Melee Weapon . | . . . Unidentified Prototypes . | . . . Parts Lost 6 | . 2 4 Power . | . . . Propulsion 1 | . . 1 Utility 2 | . . 2 Weapon 3 | . 2 1 Highest Loss Streak 2 | . 2 2 To Critical Strikes . | . . . Average Backups 16 | 4 16 18 Power 1 | . 1 1 Propulsion 6 | 2 6 7 Utility 5 | . 6 6 Weapon 2 | . 1 3 Tool/Special . | . . . Unused Backups 13 | . 1 12 Power 1 | . . 1 Propulsion 8 | . 1 7 Utility 4 | . . 4 Weapon . | . . . Tool/Special . | . . . Average Slot Usage (%) 97 | . 98 96 Engine 4 | . 6 . Core 10 | . 7 14 Treads 27 | . 27 26 Device 6 | . 6 5 Storage 14 | . 14 14 Protection 7 | . 7 6 Energy Gun 4 | . 7 . Energy Cannon 1 | . . 4 Ballistic Gun 3 | . 6 . Ballistic Cannon 16 | . 13 21 Peak Build Rating 12 | 7 11 12 Average Rating 9 | 5 9 10 On Entrance 6 | . 7 11 Avg Prop Armor Cover (%) . | . . . Naked Turns . | . . . Heaviest Build 57 | 14 54 57 Greatest Support 40 | 40 40 40 Greatest Overweight (x) 2 | . 1 2 Average Overweight (x) . | . . 1 Largest Inventory Capacity 20 | 8 20 20 Average Capacity 18 | 7 18 20 Most Carried 20 | 7 20 20 Average Carried 16 | 4 16 18 Final Capacity 20 | 8 20 20 Final Carried 20 | 7 20 18 Class Distribution -------------------- 100% | Mutant Dominant Class ---------------- Mutant | -10/Materials Mutant | -10/Subcaves Resources | -11 -10 -10 ----------- Run | Yrd Mat Sub Matter Collected 749 | 289 213 247 Remotely . | . . . Salvage Created 881 | 201 544 136 Parts 60 | 14 38 8 Haulers Intercepted 2 | . 2 . Recyclers Shooed 3 | 2 1 . Parts Field Recycled . | . . . Retrieved Matter . | . . . Parts Self-Destructed 9 | . . 9 Prevented . | . . . Parts Restored . | . . . Kills | -11 -10 -10 ------- Run | Yrd Mat Sub Combat Hostiles Destroyed 19 | . 13 6 Guns 12 | . 12 . Cannons 7 | . 1 6 Classes Destroyed 9 | 2 5 2 Worker 2 | . 2 . Tunneler 5 | 5 . . Hauler 2 | . 2 . Recycler 1 | 1 . . Turret 2 | . . 2 Watcher 1 | . 1 . Swarmer 10 | . 6 4 Grunt 7 | . 7 . Subdweller 2 | . . 2 Best Kill Streak 4 | 2 4 4 Combat Bots Only 4 | . 3 4 Max Kills in Single Turn 1 | 1 1 1 Gunslinging . | . . . Exploded . | . . . Melee . | . . . Uniques/NPCs Destroyed . | . . . Combat | -11 -10 -10 -------- Run | Yrd Mat Sub Hostile Shots Fired 184 | . 71 113 Missed 69 | . 25 44 Hits 115 | . 46 69 Projectile 115 | . 46 69 Critical Strikes 2 | . 1 1 Damage Taken 1227 | . 549 678 Core 272 | . 100 172 Absorbed by Shields . | . . . Regen/Repaired (Parts) 203 | . 203 . Core Remaining (%) 100 | 100 . . Volleys Fired 112 | 19 59 34 Largest 2 | 2 2 2 Hottest 100 | 70 70 100 Shots Fired 200 | 38 109 53 Gun 133 | 38 95 . Cannon 63 | . 14 49 Launcher . | . . . Special 4 | . . 4 Kinetic 119 | 19 57 43 Thermal 81 | 19 52 10 Explosive . | . . . Electromagnetic . | . . . Robot Hit Streak 8 | 6 8 5 Robot Miss Streak 5 | 3 5 3 Penetration Max . | . . . Secondary Targets 3 | . 3 . Max Gunslinging Chain 1 | . 1 . Shots Hit Robots 98 | 22 58 18 Core Hits 51 | 10 29 12 Critical Kills . | . . . Critical Parts Destroyed 1 | 1 . . Critical Strikes 6 | 3 2 1 Burn 4 | 2 2 . Destroy 1 | 1 . . Blast 1 | . . 1 Melee Attacks 4 | . . 4 Impact . | . . . Slashing 4 | . . 4 Piercing . | . . . Sneak Attacks . | . . . Combat Hostiles . | . . . Follow-up Attacks . | . . . Damage Inflicted 1273 | 229 714 330 Guns 847 | 229 618 . Cannons 419 | . 89 330 Explosions . | . . . Melee . | . . . Ramming 7 | . 7 . Kinetic 728 | 78 320 330 Thermal 538 | 151 387 . Explosive . | . . . Electromagnetic . | . . . Impact . | . . . Slashing . | . . . Piercing . | . . . Highest Corruption . | . . . Average Corruption . | . . . Corruption Purged . | . . . Corruption Blocked . | . . . Overload Shots . | . . . Overflow Damage . | . . . Projectiles . | . . . Explosions . | . . . Melee . | . . . Knockbacks 3 | . . 3 Impact . | . . . Kinetic 3 | . . 3 Secondary . | . . . Self-Inflicted Damage . | . . . Shots . | . . . Rammed 1 | . 1 . Targets Rammed 1 | . 1 . Kicked . | . . . Crushed . | . . . Highest Temperature 280 | 170 252 280 Average Temperature 69 | 69 64 100 Received Heat Transfer 877 | . 255 622 Siege Activations . | . . . Martial Activations . | . . . Shielding Activations . | . . . Robots Disrupted . | . . . Combat Hostiles . | . . . Robots Corrupted . | . . . Combat Hostiles . | . . . Parts Fried . | . . . Impact Corruptions . | . . . Robots Melted . | . . . Combat Hostiles . | . . . Parts Melted 4 | 1 3 . Heat Transferred 1803 | 592 1211 . Parts Sabotaged . | . . . Parts Stolen . | . . . Parts Stripped . | . . . Power Chain Reactions . | . . . Alert | -11 -10 -10 ------- Run | Yrd Mat Sub Maximum Alert Level . | . . . Low Security (%) 100 | 100 100 . Level 1 . | . . . Level 2 . | . . . Level 3 . | . . . Level 4 . | . . . Level 5 . | . . . High Security . | . . . Max Security . | . . . Peak Influence 109 | 10 109 . Initial . | . . . Average 15 | 1 17 . Influence Increases 625 | 30 355 240 Destroy 0b10 Robot/C 380 | . 260 120 Destroy 0b10 Robot/NC 55 | 30 25 . Destroy Leader 56 | . 56 . Successful Hack 14 | . 14 . Lose Combat Pursuer 120 | . . 120 Influence Decreases 625 | 30 355 240 Time Decay 575 | 30 335 210 Lost Part 50 | . 20 30 Squads Dispatched 1 | . 1 . Investigation 1 | . 1 . Extermination . | . . . Reinforcement . | . . . Assault . | . . . Garrison . | . . . Intercept . | . . . Searches Triggered . | . . . Construction Impeded . | . . . Haulers Reinforced . | . . . Active Scanning Responses . | . . . Cargo Convoy Interrupts . | . . . Stealth | -11 -10 -10 --------- Run | Yrd Mat Sub Distress Signals 1 | . 1 . Communications Jammed . | . . . Distress Signals . | . . . Times Spotted 35 | . 22 13 Peak Tracking Total 4 | . 4 4 Tactical Retreats 4 | . . 4 Traps | -11 -10 -10 ------- Run | Yrd Mat Sub Traps Triggered 3 | . 3 . Indirectly . | . . . Trap Hack Attempts . | . . . Triggered . | . . . Disarmed . | . . . Reprogrammed . | . . . Reused . | . . . Traps Extracted . | . . . Installed . | . . . Triggered . | . . . Machines | -11 -10 -10 ---------- Run | Yrd Mat Sub Machines Disabled 3 | . . 3 Max in Single Turn 1 | . . 1 Machines Repaired . | . . . Machines Dismantled . | . . . Machines Sabotaged . | . . . Overloaded Fab Kills . | . . . Hacking | -11 -10 -10 --------- Run | Yrd Mat Sub Machines Accessed 8 | . 7 1 Terminals 6 | . 6 . Fabricators . | . . . Repair Stations 1 | . 1 . Recycling Units . | . . . Scanalyzers . | . . . Garrison Access . | . . . Total Hacks 21 | . 20 1 Successful 14 | . 13 1 Failed 7 | . 7 . Catastrophic 1 | . 1 . Database Lockouts . | . . . Manual 15 | . 15 . Terminals 15 | . 15 . Fabricators . | . . . Repair Stations 5 | . 5 . Recycling Units . | . . . Scanalyzers . | . . . Garrison Access . | . . . Terminal Hacks 4 | . 3 1 Robot Analysis 2 | . 2 . Branch Access Points 1 | . 1 . Proto ID Catalog 1 | . . 1 Fabricator Hacks . | . . . Repair Station Hacks 4 | . 4 . Scan Component 2 | . 2 . Repair 2 | . 2 . Recycling Unit Hacks . | . . . Scanalyzer . | . . . Garrison Access Hacks . | . . . Unauthorized Hacks 6 | . 6 . Terminals 6 | . 6 . Botnet 1 | . 1 . Skim 5 | . 5 . Fabricators . | . . . Repair Stations . | . . . Recycling Units . | . . . Scanalyzers . | . . . Garrison Access . | . . . Data Cores Recovered . | . . . Used . | . . . Hacking Detections 6 | . 6 . Full Trace Events 1 | . 1 . Feedback Events . | . . . Feedback Blocked . | . . . Robot Schematics Acquired . | . . . Robots Built . | . . . Authchips . | . . . Time . | . . . Total Robot Build Rating . | . . . Part Schematics Acquired . | . . . Parts Built . | . . . Authchips . | . . . Time . | . . . Total Part Build Rating . | . . . Part Studies Acquired . | . . . Parts Repaired 2 | . 2 . Time 52 | . 52 . Parts Recycled . | . . . Recycled Matter . | . . . Retrieved Matter . | . . . Retrieved Components . | . . . Parts Scanalyzed . | . . . Part Schematics Acquired . | . . . Parts Damaged . | . . . Bothacking | -11 -10 -10 ------------ Run | Yrd Mat Sub Used RIF Installer . | . . . Robots Hacked . | . . . Non-combat . | . . . Combat . | . . . Robot Hacks Applied . | . . . Relay Couplers Released . | . . . Fabnet Peak Effective % . | . . . Robots Rewired . | . . . Allies Hacked . | . . . Hacks Repelled . | . . . Allies | -11 -10 -10 -------- Run | Yrd Mat Sub Total Allies . | . . . Largest Group . | . . . Highest-Rated Group . | . . . Highest-Rated Ally . | . . . Total Orders . | . . . Ally Attacks . | . . . Total Damage . | . . . Kills . | . . . Allies Corrupted . | . . . Allies Melted . | . . . Intel | -11 -10 -10 ------- Run | Yrd Mat Sub Active Infowar (turns) 1400 | 85 819 496 Seismic 1400 | 85 819 496 Robot Analysis Total 2 | . 2 . Derelict Logs Recovered . | . . . Drone Launches . | . . . Drone Recoveries . | . . . Exploration | -11 -10 -10 ------------- Run | Yrd Mat Sub Turns Passed 3284 | 225 1862 1197 Spaces Moved 1224 | 99 704 421 Core 3 | 3 . . Treads 1221 | 96 704 421 Legs . | . . . Wheels . | . . . Hover . | . . . Flight . | . . . Fastest Speed 50 | 50 160 240 Average Speed 228 | 156 228 245 Slowest Speed 320 | 160 240 320 Overloaded Moves . | . . . Propulsion Burnouts . | . . . Robots Hopped . | . . . Potential Cave-ins . | . . . Cave-ins Triggered . | . . . Exploration Rate (%) 40 | 7 95 20 Regions Visited 2 Branch Regions 1 Pre-discovered Areas . | . . . Known Exits Taken . | . . . Unknown Exits Taken 2 | 1 1 . Scrap Searched 3 | . . 3 Spaces Dug 1 | . . 1 Terrain Destroyed 1 | . . 1 Melee . | . . . Projectile 1 | . . 1 AOE . | . . . Terrain Rammed . | . . . Walls Destroyed . | . . . Machines Disabled . | . . . Actions | -11 -10 -10 --------- Run | Yrd Mat Sub Total 1495 | 131 854 510 Wait 92 | . 57 35 Move 1222 | 98 703 421 Hop . | . . . Pick Up 25 | 7 16 2 Fast Attach 15 | 7 8 . Attach 5 | . 1 4 Detach 1 | . 1 . Swap 13 | . 3 10 Drop 5 | . 5 . Fire 112 | 19 59 34 Melee 4 | . . 4 Ram . | . . . Kick . | . . . Crush 1 | . 1 . Escape Stasis . | . . . Rewire . | . . . Trap . | . . . Miscellaneous . | . . . Route ------- -11/Scrapyard -10/Materials (discovered 6 exits: [*Mat x3] / *Min x2 / *Sub) -10/Subcaves (discovered 3 exits: Mat x2 / *Rec) History --------- Turn | Location | Event 11 | -11/Scrapyard | Discovered new exit (range 15) 226 | -11/Scrapyard | Entered Materials 276 | -10/Materials | Discovered new exit (range 16) 303 | -10/Materials | Build established: Mutant 392 | -10/Materials | Discovered new exit (range 16) 674 | -10/Materials | Identified exit to Mines 1172 | -10/Materials | Discovered new exit (range 11) 1305 | -10/Materials | Repaired Lgt. Treads 1333 | -10/Materials | Repaired Lgt. Treads 1620 | -10/Materials | Discovered new exit (range 5) 1953 | -10/Materials | Learned location of 2 exits from Subcaves 2054 | -10/Materials | Learned location of 1 exit from Recycling 2067 | -10/Materials | Discovered new exit (range 10) 2087 | -10/Materials | Learned 4 Subcaves zone layouts 2088 | -10/Materials | Entered Subcaves 2089 | -10/Subcaves | Ambushed by Subdwellers from Twisted Machinery 2089 | -10/Subcaves | Identified exit to Materials 2090 | -10/Subcaves | Identified exit to Recycling 2101 | -10/Subcaves | Core integrity fell below 50% 2518 | -10/Subcaves | Core integrity fell below 20% 2609 | -10/Subcaves | Visited 4L-MR0's lab 2647 | -10/Subcaves | Found Power Bank 3284 | -10/Subcaves | Ambushed by Subdwellers from Twisted Machinery 3285 | -10/Subcaves | Destroyed by A4-KL7(R) with Subdweller Beam Cannon Last Messages --------------- 02712_ Searching scrap... 02712_ Found Sub. Beam Cannon. 02712_ Found Sub. Laser. 02712_ Found 51 Matter. 02713_ Acquired 48 matter. 02722_ Subatomizers dissect the Sub. Beam Cannon. 02722_ Acquired Sub. Beam Cannon. 02845_ Subatomizers dissect the Wheel. 02855_ Acquired 13 matter. 02870_ Subatomizers dissect the Wheel. 03029_ KZ-P7Z(u) deconstructs Twisted Machinery. 03138_ Sub. Beam Cannon shoots sparks and powers down. 03169_ KZ-P7Z(u) deconstructs Twisted Machinery. 03171_ KZ-P7Z(u) builds Twisted Machinery. 03222_ Subatomizers dissect the Sub. Laser. 03232_ Acquired 35 matter. 03233_ Subatomizers dissect the Sub. Laser. Map ----- +----------------------------------------------------+ | ?????????????????????????????????????????????????? | | ?????????????????????????????????????????????????? | | ?????????????????????????????????????????????????? | | ?????????????????????????????????????????????????? | | ?????????????????????????????????????????????????? | | ?????????????????????????????????????????????????? | | ?????????????????????????????????????????????????? | | ?????????????????????????????????????????????????? | | ?????????????????????????????????????????????????? | | ?????????????????????????????????????????????????? | | ?????????????????????????????????????????????????? | | ?????????????????????????????????????????????????? | | ?????????????????????????????????????????????????? | | ????????????????????????????????????#????????????? | | ???????????????????????????????????# ????????????? | | ??????????????????????????????????# ????????????# | | ???????????????????????????????### ?????????### | | ??????????????????????????????## #???????## | | ??????????????????????????????# ####??## | | ??????????????????????????????? ##?# ? | | ??????????????????????????????? ### #? | | ???????????" ??????????##??????? ?# #? | | ???????????"R ?????## ####??? ?## ?? | | ???????????"R ### ##??? #?## ??? | | ????????????%" ##### #??# #???# | | ????????????"" @ # # #???# ##?## | | ???????????"" # # #??## ### | | ???????????" ## ??##### #### #### [&=## | | ?????????????????# ????????###??# ## ###& | | ?????????????????#???????????????# ##?#!&& | | ?????????????????????????????????## ##??# | | ??????????????????????????????????# #???## " | | ????????????????????????????????# #????## ### | | ???????????????????????????????# #?????###?? | | ???????????????????????????????## ##?????##### | | ????????????????????????????????# ##????### "# | | ????????????????????????????????# ##?????# # | | ????????????????????????????????# ???????# | | ????????????????????????????????# ##???????### | | ???????????????????????????????? ???????????### | | ???????????????????????????????# ?????##??????### | | ???????????????????????????????# ????## ????????? | | ???????????????????????????????##????##"""???????? | | ????????????????????????????????????## ???????? | | ????????????????????????????????????#" ??????? | | ????????????????????????????????????# ###???? | | ????????????????????????????????? ## #???# | | ????????????????????????????????# " ##### | | ????????????????????????????????# "" | | ????????????????????????????????# # "# | +----------------------------------------------------+ Best States ------------- Heat Dissipation 25 Energy Generation 14 Energy Capacity 250 Matter Stores 300 Matter Capacity 300 Sight Range 16 Terrain Scan Density 10 Armor Coverage 150 Evasion (%) 40 Recoil Reduction 2 Item Schematics ----------------- None Robot Schematics ------------------ None Fabricated ------------ Nothing Repaired ---------- Lgt. Treads | 23% | -10/Materials Lgt. Treads | 31% | -10/Materials Studied --------- None Alien Tech Used ----------------- None Achievements -------------- None Challenges ------------ None Game ------ Seed MetafiberStorageShovel Manual? 0 Play Time 00:15:06 Cumulative 238.1 hours Start 2025.12.29 @ 15:51:38 End 2025.12.29 @ 16:02:54 Sessions 1 Manual Loads 0 Difficulty Rogue Special Mode None Game No. 220 Rogue 220 Adventurer 0 Explorer 0 Win Type - Total 11 Types 8/0/2/0/0/0/0/0/0/1 Lore% 87 Gallery% 77 Achievement% 60 Wizard Run 0 Options --------- Layout 1 ASCII 0 Keyboard 1 Movement Arrows Keybinds 0 Fullscreen 1 Font 24/Smallcaps Map View 50x40 Zoom Use 0% Tactical HUD 1 Map Filters NONE Filters NONE Steam 1 RUN: 58a027a6-5fd4-4d98-8d49-5abe3ed7d382